fUSD/lending_fUSD_20260316
["ID","MTS","AMOUNT","RATE_DAILY","PERIOD"]
[408458890,1773675032978,-553.0,0.00014167,2]
[408458891,1773675032987,-500.0,0.00014173,2]
[408458892,1773675032997,-500.0,0.00014173,2]
[408458893,1773675033006,-500.0,0.00014173,2]
[408458894,1773675033015,-159.8794606,0.00014173,2]
[408458895,1773675033034,-160.08787356,0.00014173,2]
[408458896,1773675033044,-500.0,0.00014173,2]
[408458897,1773675033054,-500.0,0.00014173,2]
[408458898,1773675033064,-500.0,0.00014173,2]
[408458899,1773675033073,-501.27392354,0.00014173,2]
[408458900,1773675033083,-500.0,0.00014173,2]
[408458901,1773675033092,-500.0,0.00014173,2]
[408458902,1773675033101,-500.0,0.00014173,2]
[408458903,1773675033111,-500.0,0.00014173,2]
[408458904,1773675033120,-798.22440556,0.00014174,2]
[408458905,1773675033132,-1109.24731293,0.00014174,2]
[408458913,1773675038312,-92.52828151,0.00014174,2]
[408458914,1773675038322,-166.66,0.0001419,2]
[408458915,1773675038333,-1245.0,0.00014196,2]
[408458916,1773675038345,-207.0,0.00014224,2]
[408458917,1773675038355,-310.0,0.00014252,2]
[408458918,1773675038364,-420.0,0.00014276,2]
[408458920,1773675038375,-420.0,0.00014277,2]
[408458922,1773675038384,-301.0,0.00014277,2]
[408458924,1773675038393,-1680.0,0.00014321,2]
[408458926,1773675038403,-347.27,0.00014341,2]
[408458928,1773675038412,-500.0,0.00014361,2]
[408458930,1773675038421,-6228.36242576,0.000146,2]
[408458933,1773675038432,-3294.05511357,0.000146,2]
[408458935,1773675038442,-500.0,0.00014635,2]
[408458936,1773675038451,-200.0,0.00014664,2]
[408458938,1773675038460,-2281.503144,0.00014668,2]
[408458942,1773675038487,-230.95346734,0.00012918,2]
[408458944,1773675038497,-459.66653266,0.00014668,2]
[408458946,1773675038508,-498.83032334,0.00014668,2]
[408458948,1773675038517,-124.98467215,0.000147,2]
[408458950,1773675038528,-35.07686375,0.000147,2]
[408458952,1773675038537,-160.0775347,0.000147,2]
[408458954,1773675038547,-160.08784331,0.000147,2]
[408458956,1773675038556,-160.08787306,0.000147,2]
[408458958,1773675038566,-160.78545247,0.000147,2]
[408458960,1773675038576,-500.0,0.000147,2]
[408458961,1773675038585,-1000.96706239,0.00014721,2]
[408458963,1773675038595,-500.0,0.00014721,2]
[408458965,1773675038604,-388.60866893,0.00014721,2]
[408458966,1773675038613,-1000.0,0.00014721,2]
[408458968,1773675038624,-1000.0,0.00014721,2]
[408458970,1773675038633,-1000.0,0.00014721,2]
[408458972,1773675038642,-1000.0,0.00014721,2]
[408458974,1773675038651,-166.66,0.00014752,2]
[408458975,1773675038660,-200.0,0.00014797,2]
[408458977,1773675038669,-151.88,0.00014802,2]
[408458979,1773675038678,-766.76655244,0.00014823,2]
[408458990,1773675038832,-410.58344756,0.00014823,2]
[408458991,1773675038841,-500.0,0.00014908,2]
[408458992,1773675038850,-62.6247598,0.00014928,2]
[408458993,1773675038894,-192.3752402,0.00014928,2]
[408458994,1773675038903,-147.50741954,0.0001495,2]
[408458999,1773675040314,-352.49258046,0.0001495,2]
[408459000,1773675040327,-500.0,0.0001495,2]
[408459001,1773675040337,-250.0,0.00015,2]
[408459002,1773675040346,-1852.42,0.00015011,2]
[408459003,1773675040355,-676.86,0.00015068,2]
[408459004,1773675040365,-9522.41753925,0.00015089,2]
[408459005,1773675040374,-500.0,0.0001517,2]
[408459006,1773675040383,-500.0,0.0001517,2]
[408459007,1773675040392,-500.0,0.0001517,2]
[408459008,1773675040402,-500.0,0.0001517,2]
[408459009,1773675040413,-500.0,0.0001517,2]
[408459010,1773675040578,-500.46927556,0.0001517,2]
[408459011,1773675040587,-501.38283497,0.0001517,2]
[408459012,1773675040597,-500.0,0.0001517,2]
[408459013,1773675040606,-500.0,0.0001517,2]
[408459014,1773675040616,-500.0,0.00015182,2]
[408459015,1773675040626,-200.0,0.00015212,2]
[408459016,1773675040635,-1000.0,0.00015248,2]
[408459017,1773675040644,-789.40070091,0.00015268,2]
[408459018,1773675040653,-1500.0,0.00015268,2]
[408459019,1773675040663,-1500.0,0.00015268,2]
[408459020,1773675040672,-1500.0,0.00015268,2]
[408459021,1773675040681,-166.66,0.00015314,2]
[408459022,1773675040690,-500.0,0.00015375,2]
[408459023,1773675040700,-220.12591944,0.00015375,2]
[408459024,1773675040711,-151.88,0.00015446,2]
[408459025,1773675040720,-500.0,0.00015498,2]
[408459026,1773675040729,-500.0,0.00015498,2]
[408459027,1773675040738,-1177.35,0.00015529,2]
[408459028,1773675040747,-9522.41753925,0.00015578,2]
[408459029,1773675040757,-394.66150951,0.00015599,2]
[408459030,1773675040766,-587.0,0.00015656,2]
[408459031,1773675040776,-587.0,0.00015657,2]
[408459032,1773675040785,-343.08234325,0.00015718,2]
[408459033,1773675040795,-1000.0,0.00015718,2]
[408459034,1773675040804,-1000.0,0.00015718,2]
[408459035,1773675040814,-2351.0,0.00015753,2]
[408459036,1773675040823,-2000.0,0.00015816,2]
[408459037,1773675040832,-2000.0,0.00015816,2]
[408459038,1773675040841,-1006.42760695,0.00015816,2]
[408459039,1773675040851,-166.66,0.00015877,2]
[408459040,1773675040860,-2000.0,0.0001589,2]
[408459041,1773675040869,-1000.0,0.00015923,2]
[408459042,1773675040879,-314.821666,0.0001594,7]
[408459043,1773675040888,-2000.0,0.00015945,2]
[408459044,1773675040898,-9522.41753925,0.00016067,2]
[408459045,1773675040907,-151.88,0.0001609,2]
[408459046,1773675040916,-433.0,0.00016143,2]
[408459047,1773675040926,-384.488005,0.00016181,7]
[408459048,1773675040935,-320.417385,0.00016181,7]
[408459049,1773675040946,-404.261165,0.00016181,7]
[408459050,1773675040956,-352.033192,0.00016181,7]
[408459051,1773675040966,-1177.35,0.00016234,2]
[408459052,1773675040976,-500.0,0.00016265,2]
[408459053,1773675040985,-500.0,0.00016265,2]
[408459054,1773675040995,-500.0,0.00016265,2]
[408459055,1773675041005,-500.0,0.00016265,2]
[408459056,1773675041014,-500.0,0.00016265,2]
[408459057,1773675041023,-500.0,0.00016265,2]
[408459058,1773675041032,-500.0,0.00016265,2]
[408459060,1773675041042,-500.0,0.00016265,2]
[408459062,1773675041051,-500.0,0.00016265,2]
[408459064,1773675041059,-500.0,0.00016265,2]
[408459066,1773675041068,-500.0,0.00016265,2]
[408459067,1773675041077,-500.0,0.00016265,2]
[408459069,1773675041086,-500.0,0.00016265,2]
[408459071,1773675041095,-500.0,0.00016265,2]
[408459073,1773675041105,-500.0,0.00016265,2]
[408459075,1773675041113,-500.0,0.00016265,2]
[408459076,1773675041122,-500.0,0.00016265,2]
[408459078,1773675041132,-500.0,0.00016265,2]
[408459080,1773675041141,-500.0,0.00016265,2]
[408459082,1773675041150,-500.0,0.00016265,2]
[408459084,1773675041160,-500.0,0.00016265,2]
[408459086,1773675041169,-500.0,0.00016265,2]
[408459087,1773675041178,-500.0,0.00016265,2]
[408459089,1773675041188,-500.0,0.00016265,2]
[408459091,1773675041199,-500.0,0.00016265,2]
[408459093,1773675041209,-500.0,0.00016265,2]
[408459095,1773675041218,-500.0,0.00016265,2]
[408459097,1773675041228,-519.07439971,0.00016265,2]
[408459098,1773675041238,-500.0,0.00016265,2]
[408459100,1773675041248,-500.0,0.00016265,2]
[408459101,1773675041258,-500.0,0.00016265,2]
[408459102,1773675041267,-500.0,0.00016265,2]
[408459103,1773675041278,-500.0,0.00016265,2]
[408459104,1773675041287,-500.0,0.00016265,2]
[408459105,1773675041298,-500.0,0.00016265,2]
[408459106,1773675041310,-500.0,0.00016265,2]
[408459107,1773675041320,-500.0,0.00016265,2]
[408459108,1773675041330,-500.0,0.00016265,2]
[408459109,1773675041340,-500.0,0.00016265,2]
[408459110,1773675041350,-500.0,0.00016265,2]
[408459111,1773675041360,-500.0,0.00016265,2]
[408459112,1773675041369,-650.0,0.00016265,2]
[408459113,1773675041380,-500.0,0.00016265,2]
[408459114,1773675041388,-500.0,0.00016265,2]
[408459115,1773675041398,-500.0,0.00016265,2]
[408459116,1773675041407,-500.0,0.00016265,2]
[408459117,1773675041417,-500.0,0.00016265,2]
[408459118,1773675041427,-500.0,0.00016265,2]
[408459119,1773675041436,-500.0,0.00016265,2]
[408459120,1773675041447,-500.0,0.00016265,2]
[408459121,1773675041458,-500.0,0.00016265,2]
[408459122,1773675041467,-500.0,0.00016265,2]
[408459123,1773675041476,-500.0,0.00016265,2]
[408459124,1773675041485,-500.0,0.00016265,2]
[408459125,1773675041494,-500.0,0.00016265,2]
[408459126,1773675041504,-500.0,0.00016265,2]
[408459127,1773675041512,-500.0,0.00016265,2]
[408459128,1773675041522,-1001.3548295,0.00016266,2]
[408459129,1773675041534,-1037.35995383,0.00016364,2]
[408459130,1773675041544,-1715.98361114,0.00016364,2]
[408459131,1773675041553,-676.86,0.00016438,2]
[408459132,1773675041562,-822.04,0.00016512,2]
[408459133,1773675041572,-500.0,0.00016512,2]
[408459134,1773675041581,-4246.41,0.00016512,2]
[408459135,1773675041590,-9522.41753925,0.00016556,2]
[408459136,1773675041600,-166.77,0.00016712,2]
[408459137,1773675041610,-151.88,0.00016733,2]
[408459138,1773675041619,-194.1,0.00016872,2]
[408459139,1773675041629,-1177.35,0.0001694,2]
[408459140,1773675041639,-347.27,0.00016956,2]
[408459141,1773675041649,-509.0,0.00017,2]
[408459142,1773675041658,-300.0,0.00017,2]
[408459143,1773675041667,-513.0,0.00017,2]
[408459144,1773675041676,-247.52,0.00017034,2]
[408459145,1773675041685,-9522.41753925,0.00017044,2]
[408459146,1773675041694,-356.0,0.0001717,2]
[408459147,1773675041703,-3292.0,0.00017329,2]
[408459148,1773675041713,-270.010404,0.00017373,7]
[408459149,1773675041723,-151.88,0.00017377,2]
[408459150,1773675041734,-341.0597,0.00017438,2]
[408459151,1773675041743,-736.0,0.00017441,2]
[408459152,1773675041752,-231.49751654,0.00017491,2]
[408459153,1773675041761,-9522.41753925,0.00017533,2]
[408459154,1773675041770,-8490.9072,0.00017538,2]
[408459155,1773675041779,-1000.0,0.00017538,2]
[408459156,1773675041789,-241.00181962,0.00017559,2]
[408459157,1773675041799,-6079.9912,0.00017628,2]
[408459158,1773675041808,-2739.44118724,0.00017628,2]
[408459159,1773675041817,-2000.0,0.00017717,2]
[408459160,1773675041827,-247.52,0.00017718,2]
[408459161,1773675041836,-247.52,0.00017718,2]
[408459162,1773675041846,-694.12,0.00017718,3]
[408459163,1773675041855,-5344.92,0.00017728,2]
[408459164,1773675041865,-9999.99,0.00017728,2]
[408459165,1773675041874,-4636.76,0.00017728,2]
[408459166,1773675041883,-150.99,0.00017728,2]
[408459167,1773675041892,-999.99,0.00017728,2]
[408459168,1773675041902,-9999.99,0.00017728,2]
[408459169,1773675041911,-10695.07,0.00017728,2]
[408459170,1773675041920,-70001.05,0.00017728,2]
[408459171,1773675041930,-4999.99,0.00017728,2]
[408459172,1773675041939,-299.99,0.00017728,4]
[408459173,1773675041948,-9999.99,0.00017728,2]
[408459174,1773675041957,-9345.62,0.00017728,2]
[408459175,1773675041967,-517.08,0.00017728,2]
[408459176,1773675041976,-430.68,0.00017728,2]
[408459177,1773675041986,-9999.99,0.00017728,2]
[408459178,1773675041995,-150.99,0.00017728,2]
[408459179,1773675042005,-1055.04,0.00017728,2]
[408459180,1773675042014,-837.91,0.00017728,2]
[408459181,1773675042023,-603.31981501,0.00017773,2]
[408459182,1773675042033,-500.0,0.00017773,2]
[408459183,1773675042042,-500.0,0.00017773,2]
[408459184,1773675042051,-500.0,0.00017773,2]
[408459185,1773675042060,-500.0,0.00017773,2]
[408459186,1773675042070,-500.0,0.00017773,2]
[408459187,1773675042079,-500.0,0.00017773,2]
[408459188,1773675042088,-239.71718281,0.00017808,2]
[408459189,1773675042097,-432.06381776,0.00017875,2]
[408459190,1773675042106,-839.04419825,0.000179,2]
[408459191,1773675042115,-839.04419824,0.000179,2]
[408459192,1773675042125,-314.64157435,0.000179,2]
[408459193,1773675042134,-314.64157434,0.000179,2]
[408459194,1773675042144,-314.64157434,0.000179,2]
[408459195,1773675042153,-314.64157434,0.000179,2]
[408459196,1773675042163,-2739.44118721,0.00017953,2]
[408459197,1773675042172,-376.0,0.00017957,2]
[408459198,1773675042181,-839.04419824,0.00017976,2]
[408459199,1773675042190,-500.0,0.00017979,2]
[408459200,1773675042199,-500.0,0.00017979,2]
[408459201,1773675042209,-500.0,0.00017979,2]
[408459202,1773675042218,-500.0,0.00017979,2]
[408459203,1773675042227,-500.0,0.00017979,2]
[408459204,1773675042236,-500.0,0.00017979,2]
[408459205,1773675042244,-600.2919257,0.00017979,2]
[408459206,1773675042253,-542.33811601,0.00017979,2]
[408459207,1773675042263,-500.0,0.00017979,2]
[408459208,1773675042272,-500.0,0.00017979,2]
[408459209,1773675042280,-500.0,0.00017979,2]
[408459210,1773675042289,-500.0,0.00017979,2]
[408459211,1773675042299,-500.0,0.00017979,2]
[408459212,1773675042310,-500.0,0.00017979,2]
[408459213,1773675042319,-151.0,0.00017979,2]
[408459214,1773675042328,-500.0,0.00017979,2]
[408459215,1773675042338,-500.0,0.00017979,2]
[408459216,1773675042349,-500.0,0.00017979,2]
[408459217,1773675042358,-500.0,0.00017979,2]
[408459218,1773675042368,-500.0,0.00017979,2]
[408459219,1773675042377,-500.0,0.00017979,2]
[408459220,1773675042388,-219.0,0.00018,2]
[408459221,1773675042397,-837.91,0.00018002,2]
[408459222,1773675042406,-247.52,0.00018012,2]
[408459223,1773675042415,-151.88,0.0001802,2]
[408459224,1773675042424,-9522.41753925,0.00018022,2]
[408459225,1773675042433,-194.1,0.00018026,2]
[408459226,1773675042443,-151.0,0.00018034,2]
[408459227,1773675042452,-347.27,0.00018035,2]
[408459228,1773675042462,-1600.0,0.00018082,7]
[408459229,1773675042471,-1500.0,0.00018082,7]
[408459230,1773675042480,-151.0,0.00018089,2]
[408459231,1773675042490,-350.0,0.00018111,2]
[408459232,1773675042498,-151.0,0.00018144,2]
[408459233,1773675042508,-376.0,0.00018158,2]
[408459234,1773675042517,-376.0,0.00018161,2]
[408459235,1773675042527,-151.0,0.00018199,2]
[408459236,1773675042538,-500.0,0.00018221,2]
[408459237,1773675042547,-839.04419824,0.00018245,2]
[408459238,1773675042556,-376.0,0.00018259,2]
[408459239,1773675042565,-500.0,0.00018276,2]
[408459240,1773675042574,-837.91,0.00018276,2]
[408459241,1773675042583,-2739.44118721,0.00018277,2]
[408459242,1773675042593,-200.0,0.000183,6]
[408459243,1773675042602,-925.60547283,0.00018321,2]
[408459244,1773675042611,-1000.0,0.00018321,2]
[408459245,1773675042620,-1000.0,0.00018321,2]
[408459246,1773675042630,-1000.0,0.00018321,2]
[408459247,1773675042639,-350.0,0.00018324,2]
[408459248,1773675042648,-500.0,0.00018331,2]
[408459249,1773675042658,-500.0,0.00018356,7]
[408459250,1773675042667,-376.0,0.00018374,2]
[408459251,1773675042676,-500.0,0.00018385,2]
[408459252,1773675042685,-599.92348891,0.00018385,2]
[408459253,1773675042694,-400.0,0.000184,6]
[408459254,1773675042704,-2833.3875,0.00018423,2]
[408459255,1773675042715,-2500.0,0.00018433,2]
[408459256,1773675042724,-500.0,0.0001844,2]
[408459257,1773675042734,-448.94132105,0.00018495,2]
[408459258,1773675042744,-3281.0,0.000185,2]
[408459259,1773675042754,-600.0,0.000185,6]
[408459260,1773675042763,-168.0,0.00018502,2]
[408459261,1773675042773,-9522.41753925,0.00018511,2]
[408459262,1773675042782,-500.0,0.00018533,2]
[408459263,1773675042792,-500.0,0.00018533,2]
[408459264,1773675042803,-500.0,0.00018533,2]
[408459265,1773675042812,-837.91,0.0001855,2]
[408459266,1773675042822,-800.0,0.000186,6]
[408459267,1773675042833,-2739.44118721,0.00018602,2]
[408459268,1773675042843,-13321.54818618,0.00018605,2]
[408459269,1773675042852,-5000.0,0.000187,2]
[408459270,1773675042861,-1100.0,0.000187,6]
[408459271,1773675042870,-159.65926722,0.000187,2]
[408459272,1773675042880,-5076.33846492,0.000187,2]
[408459273,1773675042889,-477.47857312,0.000187,2]
[408459274,1773675042898,-385.15043403,0.000187,2]
[408459275,1773675042908,-450.67583624,0.00018703,2]
[408459276,1773675042917,-150.0,0.00018706,2]
[408459277,1773675042926,-247.52,0.00018708,2]
[408459278,1773675042936,-2000.0,0.0001871,2]
[408459279,1773675042945,-2000.0,0.0001871,2]
[408459280,1773675042955,-4594.836,0.00018718,2]
[408459281,1773675042964,-173.946,0.00018718,2]
[408459282,1773675042974,-224184.18114331,0.0001872,2]
[408459283,1773675042983,-1000.0,0.00018749,2]
[408459285,1773675042992,-1000.0,0.0001875,2]
[408459287,1773675043002,-477.4785731,0.0001876,2]
[408459289,1773675043011,-505.88809105,0.0001879,2]
[408459291,1773675043021,-500.0,0.00018799,2]
[408459292,1773675043031,-294.99932521,0.00018799,2]
[408459294,1773675043040,-500.0,0.00018799,2]
[408459295,1773675043049,-524.44025027,0.00018799,2]
[408459296,1773675043059,-500.0,0.00018799,2]
[408459297,1773675043068,-500.0,0.00018799,2]
[408459298,1773675043078,-500.0,0.00018799,2]
[408459299,1773675043087,-500.0,0.00018799,2]
[408459300,1773675043097,-500.0,0.00018799,2]
[408459301,1773675043107,-500.0,0.00018799,2]
[408459302,1773675043116,-500.0,0.00018799,2]
[408459303,1773675043125,-354.39374117,0.00018799,2]
[408459304,1773675043134,-500.0,0.00018799,2]
[408459305,1773675043144,-500.0,0.00018799,2]
[408459306,1773675043155,-500.0,0.00018799,2]
[408459307,1773675043164,-500.0,0.00018799,2]
[408459308,1773675043173,-500.0,0.00018799,2]
[408459309,1773675043182,-500.0,0.00018799,2]
[408459310,1773675043192,-500.0,0.00018799,2]
[408459311,1773675043201,-500.0,0.00018799,2]
[408459312,1773675043211,-613.07206318,0.00018799,2]
[408459313,1773675043220,-2500000.0,0.000188,2]
[408459314,1773675043229,-200.0,0.000188,6]
[408459315,1773675043238,-1000.0,0.00018803,2]
[408459316,1773675043248,-1000.0,0.00018807,2]
[408459317,1773675043258,-477.4785731,0.0001882,2]
[408459318,1773675043267,-837.91,0.00018824,2]
[408459319,1773675043276,-152.85955271,0.00018828,2]
[408459320,1773675043285,-1939.0,0.00018833,5]
[408459321,1773675043295,-150.0,0.00018838,2]
[408459322,1773675043308,-505.88809105,0.00018844,2]
[408459323,1773675043317,-1000.0,0.00018847,2]
[408459324,1773675043327,-153.43633385,0.00018851,2]
[408459325,1773675043336,-450.67583624,0.00018852,2]
[408459326,1773675043346,-1500000.0,0.00018854,2]
[408459327,1773675043355,-754.132633,0.00018854,2]
[408459328,1773675043364,-754.132633,0.00018854,2]
[408459329,1773675043374,-754.132633,0.00018854,2]
[408459330,1773675043383,-754.132633,0.00018854,2]
[408459331,1773675043392,-388.35535,0.00018854,2]
[408459332,1773675043401,-388.35535,0.00018854,2]
[408459333,1773675043411,-388.35535,0.00018854,2]
[408459334,1773675043420,-388.35535,0.00018854,2]
[408459335,1773675043429,-2259.175106,0.00018854,2]
[408459336,1773675043439,-2259.175106,0.00018854,2]
[408459337,1773675043448,-2259.175106,0.00018854,2]
[408459338,1773675043457,-2259.175106,0.00018854,2]
[408459339,1773675043466,-151.0,0.00018854,2]
[408459340,1773675043475,-221.592816,0.00018854,2]
[408459341,1773675043485,-151.0,0.00018854,2]
[408459342,1773675043494,-201.800742,0.00018854,2]
[408459343,1773675043503,-1766.710033,0.00018854,2]
[408459344,1773675043512,-1766.710033,0.00018854,2]
[408459347,1773675043644,-1766.710033,0.00018854,2]
[408459348,1773675043654,-1766.710033,0.00018854,2]
[408459349,1773675043664,-151.0,0.00018854,2]
[408459350,1773675043673,-151.0,0.00018854,2]
[408459351,1773675043683,-306.283989,0.00018854,2]
[408459352,1773675043692,-833.544897,0.00018854,2]
[408459353,1773675043701,-833.544897,0.00018854,2]
[408459354,1773675043711,-833.544897,0.00018854,2]
[408459355,1773675043720,-833.544897,0.00018854,2]
[408459356,1773675043730,-436.745245,0.00018854,2]
[408459357,1773675043739,-436.745245,0.00018854,2]
[408459358,1773675043748,-1000.0,0.00018863,2]
[408459359,1773675043758,-320.0,0.00018863,2]
[408459360,1773675043767,-1500.0,0.00018868,2]
[408459361,1773675043778,-1063.28508783,0.00018868,2]
[408459362,1773675043788,-1500.0,0.00018868,2]
[408459363,1773675043798,-477.4785731,0.0001888,2]
[408459364,1773675043807,-1000.0,0.00018881,2]
[408459365,1773675043816,-892.50890879,0.00018897,2]
[408459366,1773675043825,-167417.77622958,0.000189,2]
[408459367,1773675043844,-889.80138062,0.000189,2]
[408459368,1773675043855,-665.0,0.000189,2]
[408459369,1773675044012,-151.0,0.00018854,2]
[408459370,1773675044022,-436.745245,0.00018854,2]
[408459371,1773675044031,-151.0,0.00018854,2]
[408459372,1773675044041,-436.745245,0.00018854,2]
[408459373,1773675044050,-7943.3213347,0.000189,2]
[408459374,1773675044065,-550.010674,0.000189,2]
[408459375,1773675044076,-12691.73954232,0.000189,2]
[408459377,1773675045982,-187.572271,0.00018854,2]
[408459378,1773675045992,-954.83846756,0.000189,2]
[408459379,1773675046004,-738.44902215,0.000189,2]
[408459380,1773675046299,-288.94222346,0.000189,2]
[408459417,1773676013173,-185.48963836,0.00014534,2]
[408459419,1773676025136,-1807.08036164,0.00014534,2]
[408459420,1773676025165,-187.21492415,0.00014578,2]
[408459421,1773676025187,-600.0,0.00014678,2]
[408459422,1773676025208,-250.0,0.00014822,2]
[408459423,1773676025229,-276.01366804,0.0001511,2]
[408459424,1773676025250,-680.38491021,0.00015188,2]
[408459425,1773676025271,-215.8588,0.00015687,2]
[408459426,1773676025291,-152.0,0.00015787,3]
[408459427,1773676025311,-1200.0,0.00015986,2]
[408459428,1773676025330,-300.0,0.00015987,2]
[408459429,1773676025350,-250.0,0.00015987,2]
[408459430,1773676025370,-426.97443347,0.00015987,2]
[408459431,1773676025390,-321.58196775,0.00015987,2]
[408459432,1773676025410,-600.0,0.00015987,2]
[408459433,1773676025433,-526.51350935,0.00016264,2]
[408459434,1773676025453,-500.0,0.00016264,2]
[408459435,1773676025472,-613.07206318,0.00016264,2]
[408459436,1773676025492,-63.2160912,0.00016333,2]
[408459450,1773676232150,-236.7839088,0.00016333,2]
[408459452,1773676232159,-368.82177241,0.00016667,2]
[408459453,1773676232169,-166.49782903,0.00016958,2]
[408459455,1773676232178,-510.0,0.00017,2]
[408459457,1773676232188,-626.25586448,0.00017,2]
[408459460,1773676232218,-5148.71300558,0.00017,2]
[408459461,1773676232227,-4653.85,0.00017058,2]
[408459462,1773676232237,-150.0,0.00017291,2]
[408459463,1773676232246,-320.0,0.00017658,2]
[408459464,1773676232255,-1200.0,0.00017658,2]
[408459466,1773676232466,-3583.94,0.00017659,2]
[408459467,1773676232477,-9999.99,0.00017659,2]
[408459468,1773676232486,-4999.99,0.00017659,2]
[408459469,1773676232495,-202.38527942,0.00017672,2]
[408459471,1773676232505,-500.0,0.00017672,2]
[408459473,1773676232514,-532.10249534,0.00017672,2]
[408459474,1773676232523,-181.14950739,0.00017672,2]
[408459475,1773676232532,-528.30089606,0.00017672,2]
[408459476,1773676232541,-3705.26,0.00017683,2]
[408459477,1773676232551,-9999.99,0.00017683,2]
[408459478,1773676232561,-9999.99,0.00017683,2]
[408459479,1773676232570,-299.99,0.00017683,4]
[408459480,1773676232579,-150.99,0.00017683,2]
[408459481,1773676232588,-999.99,0.00017683,2]
[408459482,1773676232597,-9999.99,0.00017683,2]
[408459483,1773676232606,-500.0,0.00017726,2]
[408459484,1773676232616,-500.0,0.00017726,2]
[408459485,1773676232625,-500.0,0.00017726,2]
[408459486,1773676232634,-500.0,0.00017726,2]
[408459487,1773676232643,-1500.0,0.00017765,2]
[408459488,1773676232652,-2913.37881624,0.0001786,2]
[408459489,1773676232672,-7072.49302969,0.0001786,2]
[408459490,1773676232684,-5000.0,0.0001786,2]
[408459491,1773676232694,-5000.0,0.0001786,2]
[408459492,1773676232703,-5000.0,0.0001786,2]
[408459493,1773676232712,-175.49,0.00017861,2]
[408459494,1773676232721,-168.0,0.00017893,2]
[408459495,1773676232730,-314.64157434,0.000179,2]
[408459496,1773676232739,-524.40262392,0.000179,2]
[408459497,1773676232748,-524.40262389,0.000179,2]
[408459498,1773676232757,-524.40262389,0.000179,2]
[408459499,1773676232766,-524.40262389,0.000179,2]
[408459500,1773676232775,-314.64157434,0.000179,2]
[408459501,1773676232784,-314.64157434,0.000179,2]
[408459502,1773676232794,-500.0,0.0001792,2]
[408459503,1773676232804,-500.0,0.0001792,2]
[408459504,1773676232813,-500.0,0.0001792,2]
[408459505,1773676232823,-500.0,0.0001792,2]
[408459506,1773676232832,-501.34415765,0.0001792,2]
[408459507,1773676232841,-448.24083087,0.0001792,2]
[408459508,1773676232850,-500.0,0.0001792,2]
[408459509,1773676232859,-500.0,0.0001792,2]
[408459510,1773676232868,-191.85246219,0.0001792,2]
[408459511,1773676232877,-500.0,0.0001792,2]
[408459512,1773676232886,-500.0,0.0001792,2]
[408459513,1773676232895,-168.0,0.0001793,2]
[408459514,1773676232905,-500.0,0.00017954,2]
[408459515,1773676232914,-500.0,0.00017954,2]
[408459516,1773676232923,-151.0,0.00017954,2]
[408459517,1773676232932,-500.0,0.00017954,2]
[408459518,1773676232941,-500.0,0.00017954,2]
[408459519,1773676232951,-500.0,0.00017954,2]
[408459520,1773676232960,-500.0,0.00017954,2]
[408459521,1773676232970,-174.61919141,0.00017954,2]
[408459522,1773676232979,-500.0,0.00017954,2]
[408459523,1773676232988,-500.0,0.00017954,2]
[408459524,1773676232997,-200.0,0.00017954,2]
[408459525,1773676233007,-500.0,0.00017954,2]